fUSD/lending_fUSD_20250623
["ID","MTS","AMOUNT","RATE_DAILY","PERIOD"]
[367214215,1750703444601,-490.0,0.00022883,2]
[367214217,1750703444611,-1105.31,0.00022883,2]
[367214219,1750703444625,-490.0,0.00022883,2]
[367214221,1750703444635,-490.0,0.00022883,2]
[367214223,1750703444645,-490.0,0.00022883,2]
[367214226,1750703444658,-799.88,0.00022883,2]
[367214227,1750703444667,-490.0,0.00022883,2]
[367214230,1750703444676,-636.84,0.00022883,2]
[367214231,1750703444686,-490.0,0.00022883,2]
[367214233,1750703444696,-490.0,0.00022883,2]
[367214235,1750703444705,-490.0,0.00022883,2]
[367214237,1750703444714,-490.0,0.00022883,2]
[367214239,1750703444723,-1285.88,0.00022883,2]
[367214241,1750703444732,-490.0,0.00022883,2]
[367214243,1750703444741,-678.69,0.00022883,2]
[367214245,1750703444750,-822.67,0.00022883,2]
[367214247,1750703444759,-490.0,0.00022883,2]
[367214249,1750703444769,-490.0,0.00022883,2]
[367214251,1750703444778,-490.0,0.00022883,2]
[367214253,1750703444788,-490.0,0.00022883,2]
[367214255,1750703444797,-490.0,0.00022883,2]
[367214257,1750703444806,-1174.8,0.00022883,2]
[367214259,1750703444815,-490.0,0.00022883,2]
[367214261,1750703444824,-490.0,0.00022883,2]
[367214263,1750703444833,-490.0,0.00022883,2]
[367214265,1750703444843,-490.0,0.00022883,2]
[367214267,1750703444852,-490.0,0.00022883,2]
[367214269,1750703444861,-2085.62,0.00022883,2]
[367214271,1750703444870,-1151.67,0.00022883,2]
[367214273,1750703444879,-490.0,0.00022883,2]
[367214275,1750703444889,-490.0,0.00022883,2]
[367214277,1750703444899,-490.0,0.00022883,2]
[367214279,1750703444908,-752.98,0.00022883,2]
[367214281,1750703444918,-781.03,0.00022883,2]
[367214283,1750703444927,-700.34,0.00022883,2]
[367214285,1750703444935,-652.46,0.00022883,2]
[367214286,1750703444944,-490.0,0.00022883,2]
[367214288,1750703444953,-599.02,0.00022883,2]
[367214290,1750703444963,-490.0,0.00022883,2]
[367214292,1750703444972,-969.39,0.00022883,2]
[367214294,1750703444981,-490.0,0.00022883,2]
[367214296,1750703444991,-490.0,0.00022883,2]
[367214298,1750703445000,-490.0,0.00022883,2]
[367214300,1750703445009,-649.37,0.00022883,2]
[367214302,1750703445019,-500.0,0.00022883,2]
[367214304,1750703445028,-711.09,0.00022883,2]
[367214306,1750703445037,-810.7,0.00022883,2]
[367214308,1750703445046,-490.0,0.00022883,2]
[367214310,1750703445055,-955.54,0.00022883,2]
[367214312,1750703445064,-637.11,0.00022883,2]
[367214314,1750703445073,-490.0,0.00022883,2]
[367214316,1750703445083,-490.0,0.00022883,2]
[367214318,1750703445092,-151.0,0.00022883,7]
[367214320,1750703445101,-490.0,0.00022883,2]
[367214322,1750703445110,-490.0,0.00022883,2]
[367214324,1750703445119,-151.0,0.00022883,7]
[367214326,1750703445128,-723.04,0.00022883,2]
[367214328,1750703445137,-490.0,0.00022883,2]
[367214330,1750703445146,-490.0,0.00022883,2]
[367214332,1750703445155,-490.0,0.00022883,2]
[367214334,1750703445164,-427.87699809,0.00022883,2]
[367214336,1750703445173,-490.0,0.00022883,2]
[367214338,1750703445182,-490.0,0.00022883,2]
[367214340,1750703445191,-490.0,0.00022883,2]
[367214342,1750703445200,-1154.11,0.00022883,2]
[367214344,1750703445209,-490.0,0.00022883,2]
[367214346,1750703445219,-490.0,0.00022883,2]
[367214348,1750703445229,-160.15541214,0.00022883,2]
[367214350,1750703445239,-490.0,0.00022883,2]
[367214352,1750703445247,-151.0,0.00022883,7]
[367214353,1750703445256,-580.3,0.00022883,2]
[367214355,1750703445265,-734.2,0.00022883,2]
[367214357,1750703445274,-764.78,0.00022883,2]
[367214359,1750703445284,-764.78,0.00022883,2]
[367214361,1750703445295,-490.0,0.00022883,2]
[367214363,1750703445304,-526.31,0.00022883,2]
[367214365,1750703445313,-585.9173908,0.00022883,2]
[367214367,1750703445323,-490.0,0.00022883,2]
[367214369,1750703445333,-490.0,0.00022883,2]
[367214371,1750703445343,-490.0,0.00022883,2]
[367214373,1750703445352,-1012.02,0.00022883,2]
[367214375,1750703445361,-490.0,0.00022883,2]
[367214377,1750703445370,-500.0,0.00022883,2]
[367214379,1750703445380,-181.52823317,0.00022883,2]
[367214381,1750703445390,-853.58,0.00022883,2]
[367214383,1750703445400,-490.0,0.00022883,2]
[367214385,1750703445410,-490.0,0.00022883,2]
[367214387,1750703445419,-1468.04,0.00022883,2]
[367214389,1750703445429,-490.0,0.00022883,2]
[367214391,1750703445438,-490.0,0.00022883,2]
[367214393,1750703445449,-490.0,0.00022883,2]
[367214395,1750703445459,-490.0,0.00022883,2]
[367214397,1750703445468,-490.0,0.00022883,2]
[367214399,1750703445477,-490.0,0.00022883,2]
[367214401,1750703445486,-490.0,0.00022883,2]
[367214403,1750703445495,-490.0,0.00022883,2]
[367214405,1750703445504,-490.0,0.00022883,2]
[367214407,1750703445513,-490.0,0.00022883,2]
[367214409,1750703445522,-490.0,0.00022883,2]
[367214411,1750703445533,-1156.17,0.00022883,2]
[367214414,1750703445541,-490.0,0.00022883,2]
[367214417,1750703445551,-490.0,0.00022883,2]
[367214419,1750703445560,-1710.72,0.00022883,2]
[367214421,1750703445569,-490.0,0.00022883,2]
[367214422,1750703445578,-1063.33,0.00022883,2]
[367214423,1750703445587,-490.0,0.00022883,2]
[367214424,1750703445596,-490.0,0.00022883,2]
[367214425,1750703445606,-548.27,0.00022883,2]
[367214426,1750703445617,-490.0,0.00022883,2]
[367214427,1750703445627,-491.79931684,0.00022883,2]
[367214428,1750703445636,-490.0,0.00022883,2]
[367214429,1750703445645,-490.0,0.00022883,2]
[367214430,1750703445654,-8830.8,0.00022883,2]
[367214431,1750703445664,-490.0,0.00022883,2]
[367214432,1750703445673,-491.3215211,0.00022883,2]
[367214433,1750703445682,-1001.34823759,0.00022883,2]
[367214434,1750703445692,-752.28,0.00022883,2]
[367214435,1750703445701,-490.78502001,0.00022883,2]
[367214436,1750703445710,-490.0,0.00022883,2]
[367214437,1750703445719,-1244.24,0.00022883,2]
[367214439,1750703445728,-490.0,0.00022883,2]
[367214440,1750703445738,-490.0,0.00022883,2]
[367214442,1750703445747,-1000.0,0.00022883,2]
[367214445,1750703445756,-490.0,0.00022883,2]
[367214447,1750703445765,-490.0,0.00022883,2]
[367214449,1750703445775,-490.0,0.00022883,2]
[367214451,1750703445784,-490.0,0.00022883,2]
[367214453,1750703445794,-490.0,0.00022883,2]
[367214455,1750703445803,-490.0,0.00022883,2]
[367214457,1750703445814,-1183.32,0.00022883,2]
[367214459,1750703445823,-490.0,0.00022883,2]
[367214461,1750703445832,-490.0,0.00022883,2]
[367214463,1750703445841,-490.0,0.00022883,2]
[367214464,1750703445850,-503.06222229,0.00022883,2]
[367214466,1750703445860,-1194.43,0.00022883,2]
[367214468,1750703445869,-490.0,0.00022883,2]
[367214470,1750703445878,-490.0,0.00022883,2]
[367214472,1750703445887,-151.0,0.00022883,7]
[367214474,1750703445896,-151.0,0.00022883,7]
[367214476,1750703445905,-490.0,0.00022883,2]
[367214478,1750703445914,-1482.51,0.00022883,2]
[367214480,1750703445923,-490.0,0.00022883,2]
[367214482,1750703445932,-589.9,0.00022883,2]
[367214484,1750703445941,-1565.94,0.00022883,2]
[367214486,1750703445950,-507.92,0.00022883,2]
[367214488,1750703445959,-538.48281133,0.00022883,2]
[367214490,1750703445969,-490.0,0.00022883,2]
[367214492,1750703445978,-490.0,0.00022883,2]
[367214494,1750703445987,-500.0,0.00022883,2]
[367214496,1750703445996,-220.81996294,0.00022883,2]
[367214498,1750703446006,-1613.24,0.00022883,2]
[367214500,1750703446015,-490.0,0.00022883,2]
[367214502,1750703446024,-254.0,0.00022883,2]
[367214504,1750703446033,-490.0,0.00022883,2]
[367214506,1750703446043,-490.0,0.00022883,2]
[367214507,1750703446052,-840.63,0.00022883,2]
[367214509,1750703446062,-1982.72,0.00022883,2]
[367214512,1750703446072,-763.03,0.00022883,2]
[367214513,1750703446082,-385.35746974,0.00022883,2]
[367214515,1750703446091,-500.0,0.00022883,2]
[367214517,1750703446100,-500.0,0.00022883,2]
[367214519,1750703446110,-490.0,0.00022883,2]
[367214521,1750703446119,-11378.11,0.00022883,2]
[367214523,1750703446128,-2744.42,0.00022883,2]
[367214525,1750703446137,-490.0,0.00022883,2]
[367214527,1750703446147,-490.0,0.00022883,2]
[367214529,1750703446156,-1026.4,0.00022883,2]
[367214531,1750703446165,-496.69,0.00022883,2]
[367214533,1750703446174,-431.822114,0.00022883,7]
[367214535,1750703446184,-431.822114,0.00022883,7]
[367214537,1750703446193,-151.0,0.00022883,7]
[367214539,1750703446203,-431.822114,0.00022883,7]
[367214541,1750703446212,-151.0,0.00022883,7]
[367214543,1750703446221,-151.0,0.00022883,7]
[367214545,1750703446230,-490.0,0.00022883,2]
[367214547,1750703446240,-490.0,0.00022883,2]
[367214549,1750703446249,-5482.74,0.00022883,2]
[367214551,1750703446258,-490.0,0.00022883,2]
[367214553,1750703446267,-490.0,0.00022883,2]
[367214555,1750703446276,-490.0,0.00022883,2]
[367214557,1750703446285,-571.35,0.00022883,2]
[367214559,1750703446295,-490.0,0.00022883,2]
[367214561,1750703446304,-151.0,0.00022883,7]
[367214563,1750703446313,-151.0,0.00022883,7]
[367214565,1750703446322,-3897.11,0.00022883,2]
[367214567,1750703446331,-288.315444,0.00022883,7]
[367214569,1750703446340,-565.98,0.00022883,2]
[367214571,1750703446351,-1641.05,0.00022883,2]
[367214573,1750703446359,-490.0,0.00022883,2]
[367214575,1750703446368,-151.0,0.00022883,7]
[367214577,1750703446377,-1224.12,0.00022883,2]
[367214579,1750703446387,-151.0,0.00022883,7]
[367214581,1750703446397,-529.6,0.00022883,2]
[367214583,1750703446406,-563.74,0.00022883,2]
[367214585,1750703446415,-453.89425983,0.00022883,2]
[367214587,1750703446424,-957.96,0.00022883,2]
[367214589,1750703446433,-1037.71,0.00022883,2]
[367214591,1750703446442,-490.0,0.00022883,2]
[367214593,1750703446451,-4733.64,0.00022883,2]
[367214595,1750703446460,-490.0,0.00022883,2]
[367214597,1750703446469,-735.3,0.00022883,2]
[367214599,1750703446478,-884.02,0.00022883,2]
[367214601,1750703446487,-3517.16,0.00022883,2]
[367214603,1750703446496,-490.0,0.00022883,2]
[367214604,1750703446505,-490.0,0.00022883,2]
[367214606,1750703446514,-151.0,0.00022883,7]
[367214608,1750703446523,-151.0,0.00022883,7]
[367214610,1750703446532,-490.0,0.00022883,2]
[367214612,1750703446542,-151.0,0.00022883,7]
[367214614,1750703446551,-309.36125393,0.00022883,2]
[367214616,1750703446560,-490.0,0.00022883,2]
[367214618,1750703446569,-490.0,0.00022883,2]
[367214620,1750703446579,-521.7392497,0.00022883,2]
[367214622,1750703446588,-685.64,0.00022883,2]
[367214624,1750703446597,-803.35,0.00022883,2]
[367214626,1750703446606,-490.0,0.00022883,2]
[367214628,1750703446618,-548.03,0.00022883,2]
[367214630,1750703446629,-7076.0,0.00022883,2]
[367214632,1750703446638,-1133.34,0.00022883,2]
[367214634,1750703446648,-1899.63,0.00022883,2]
[367214636,1750703446658,-151.0,0.00022883,7]
[367214638,1750703446667,-154.268192,0.00022883,7]
[367214640,1750703446676,-1353.13,0.00022883,2]
[367214642,1750703446685,-490.0,0.00022883,2]
[367214644,1750703446694,-960.01,0.00022883,2]
[367214646,1750703446705,-2157.61,0.00022883,2]
[367214648,1750703446713,-490.0,0.00022883,2]
[367214650,1750703446723,-880.79,0.00022883,2]
[367214652,1750703446732,-1231.26,0.00022883,2]
[367214654,1750703446742,-490.0,0.00022883,2]
[367214656,1750703446752,-492.19068232,0.00022883,2]
[367214658,1750703446761,-2205.38,0.00022883,2]
[367214660,1750703446770,-151.0,0.00022883,7]
[367214662,1750703446779,-151.0,0.00022883,7]
[367214664,1750703446789,-151.0,0.00022883,7]
[367214665,1750703446798,-151.0,0.00022883,7]
[367214668,1750703446808,-153.942351,0.00022883,7]
[367214669,1750703446817,-151.0,0.00022883,7]
[367214671,1750703446827,-151.0,0.00022883,7]
[367214673,1750703446837,-151.0,0.00022883,7]
[367214675,1750703446846,-151.0,0.00022883,7]
[367214677,1750703446855,-151.0,0.00022883,7]
[367214679,1750703446865,-1347.54,0.00022883,2]
[367214681,1750703446874,-490.0,0.00022883,2]
[367214683,1750703446883,-933.13,0.00022883,2]
[367214685,1750703446899,-151.0,0.00022883,7]
[367214687,1750703446909,-227.780122,0.00022883,7]
[367214689,1750703446919,-490.0,0.00022883,2]
[367214691,1750703446928,-1237.42,0.00022883,2]
[367214693,1750703446937,-1430.76,0.00022883,2]
[367214695,1750703446946,-151.0,0.00022883,7]
[367214697,1750703446956,-490.0,0.00022883,2]
[367214699,1750703446965,-151.0,0.00022883,7]
[367214701,1750703446974,-21410.33,0.00022883,2]
[367214703,1750703446983,-857.16,0.00022883,2]
[367214705,1750703446992,-490.0,0.00022883,2]
[367214707,1750703447001,-935.66,0.00022883,2]
[367214709,1750703447011,-1271.94,0.00022883,2]
[367214711,1750703447020,-490.0,0.00022883,2]
[367214713,1750703447029,-490.0,0.00022883,2]
[367214715,1750703447038,-538.58,0.00022883,2]
[367214717,1750703447047,-490.0,0.00022883,2]
[367214719,1750703447056,-1676.55,0.00022883,2]
[367214721,1750703447065,-490.0,0.00022883,2]
[367214723,1750703447075,-490.0,0.00022883,2]
[367214725,1750703447084,-3083.05,0.00022883,2]
[367214727,1750703447094,-490.0,0.00022883,2]
[367214729,1750703447103,-490.0,0.00022883,2]
[367214731,1750703447112,-1568.28,0.00022883,2]
[367214733,1750703447121,-490.0,0.00022883,2]
[367214735,1750703447130,-490.0,0.00022883,2]
[367214736,1750703447143,-3180.99,0.00022883,2]
[367214738,1750703447152,-536.31,0.00022883,2]
[367214740,1750703447161,-151.0,0.00022883,7]
[367214742,1750703447170,-490.0,0.00022883,2]
[367214744,1750703447179,-2087.14,0.00022883,2]
[367214746,1750703447189,-894.56,0.00022883,2]
[367214748,1750703447198,-632.71,0.00022883,2]
[367214750,1750703447207,-1031.51,0.00022883,2]
[367214752,1750703447216,-12146.97,0.00022883,2]
[367214754,1750703447225,-490.0,0.00022883,2]
[367214756,1750703447234,-151.0,0.00022883,7]
[367214758,1750703447243,-151.0,0.00022883,7]
[367214760,1750703447252,-490.0,0.00022883,2]
[367214762,1750703447261,-151.0,0.00022883,7]
[367214764,1750703447270,-151.0,0.00022883,7]
[367214766,1750703447279,-1347.76,0.00022883,2]
[367214768,1750703447288,-490.0,0.00022883,2]
[367214770,1750703447297,-2159.79,0.00022883,2]
[367214772,1750703447306,-490.0,0.00022883,2]
[367214774,1750703447316,-490.0,0.00022883,2]
[367214776,1750703447325,-490.0,0.00022883,2]
[367214778,1750703447334,-551.97726307,0.00022883,2]
[367214780,1750703447343,-490.0,0.00022883,2]
[367214782,1750703447352,-3155.71,0.00022883,2]
[367214784,1750703447362,-490.0,0.00022883,2]
[367214786,1750703447371,-490.0,0.00022883,2]
[367214788,1750703447380,-781.62,0.00022883,2]
[367214790,1750703447391,-490.0,0.00022883,2]
[367214792,1750703447400,-1473.56,0.00022883,2]
[367214794,1750703447409,-490.0,0.00022883,2]
[367214796,1750703447419,-2054.94,0.00022883,2]
[367214798,1750703447429,-2313.35,0.00022883,2]
[367214800,1750703447438,-490.0,0.00022883,2]
[367214802,1750703447447,-490.0,0.00022883,2]
[367214803,1750703447456,-3961.01,0.00022883,2]
[367214805,1750703447465,-490.0,0.00022883,2]
[367214807,1750703447474,-490.0,0.00022883,2]
[367214809,1750703447483,-1266.29,0.00022883,2]
[367214811,1750703447492,-490.0,0.00022883,2]
[367214813,1750703447502,-151.0,0.00022883,7]
[367214815,1750703447511,-495.65501332,0.00022883,2]
[367214817,1750703447520,-1525.62,0.00022883,2]
[367214819,1750703447530,-490.0,0.00022883,2]
[367214821,1750703447539,-261.16728347,0.00022883,2]
[367214823,1750703447548,-151.0,0.00022883,7]
[367214825,1750703447557,-151.0,0.00022883,7]
[367214827,1750703447566,-157.021124,0.00022883,7]
[367214829,1750703447575,-490.0,0.00022883,2]
[367214831,1750703447584,-181847.22,0.00022883,2]
[367214833,1750703447593,-490.0,0.00022883,2]
[367214835,1750703447602,-490.0,0.00022883,2]
[367214837,1750703447612,-1072.4,0.00022883,2]
[367214838,1750703447623,-151.0,0.00022883,7]
[367214840,1750703447632,-681.38,0.00022883,2]
[367214843,1750703447642,-1014.71,0.00022883,2]
[367214844,1750703447651,-490.0,0.00022883,2]
[367214847,1750703447663,-490.0,0.00022883,2]
[367214849,1750703447672,-490.0,0.00022883,2]
[367214850,1750703447681,-467.37725257,0.00022883,2]
[367214852,1750703447692,-1750.12,0.00022883,2]
[367214854,1750703447702,-490.0,0.00022883,2]
[367214856,1750703447712,-151.0,0.00022883,7]
[367214859,1750703447723,-490.0,0.00022883,2]
[367214861,1750703447732,-687.98,0.00022883,2]
[367214863,1750703447742,-151.0,0.00022883,7]
[367214865,1750703447751,-151.0,0.00022883,7]
[367214867,1750703447761,-2495.97,0.00022883,2]
[367214869,1750703447770,-240.529284,0.00022883,7]
[367214870,1750703447780,-151.0,0.00022883,7]
[367214872,1750703447789,-538.87,0.00022883,2]
[367214874,1750703447799,-151.0,0.00022883,7]
[367214876,1750703447808,-151.0,0.00022883,7]
[367214878,1750703447818,-493.58878424,0.00022883,2]
[367214880,1750703447827,-1525.37,0.00022883,2]
[367214882,1750703447837,-616.26,0.00022883,2]
[367214884,1750703447847,-2157.21,0.00022883,2]
[367214886,1750703447857,-495.79111948,0.00022883,2]
[367214888,1750703447866,-151.0,0.00022883,7]
[367214890,1750703447875,-490.0,0.00022883,2]
[367214892,1750703447884,-151.0,0.00022883,7]
[367214894,1750703447895,-249.314094,0.00022883,7]
[367214896,1750703447905,-490.0,0.00022883,2]
[367214898,1750703447914,-556.54,0.00022883,2]
[367214900,1750703447923,-1438.62,0.00022883,2]
[367214902,1750703447933,-4720.44,0.00022883,2]
[367214904,1750703447942,-490.0,0.00022883,2]
[367214906,1750703447952,-490.0,0.00022883,2]
[367214908,1750703447961,-151.0,0.00022883,7]
[367214910,1750703447971,-151.0,0.00022883,7]
[367214912,1750703447981,-1521.01,0.00022883,2]
[367214914,1750703447991,-151.0,0.00022883,7]
[367214916,1750703448000,-492.83133044,0.00022883,2]
[367214918,1750703448009,-191.436494,0.00022883,7]
[367214920,1750703448019,-490.0,0.00022883,2]
[367214922,1750703448028,-491.06940614,0.00022883,2]
[367214923,1750703448038,-2401.16,0.00022883,2]
[367214925,1750703448048,-151.0,0.00022883,7]
[367214927,1750703448057,-650.69,0.00022883,2]
[367214929,1750703448067,-490.0,0.00022883,2]
[367214932,1750703448077,-902.66,0.00022883,2]
[367214933,1750703448087,-5321.28,0.00022883,2]
[367214935,1750703448096,-490.0,0.00022883,2]
[367214937,1750703448105,-1510.41,0.00022883,2]
[367214939,1750703448115,-1331.03,0.00022883,2]
[367214941,1750703448124,-490.0,0.00022883,2]
[367214943,1750703448133,-490.0,0.00022883,2]
[367214944,1750703448144,-490.0,0.00022883,2]
[367214945,1750703448153,-642.67,0.00022883,2]
[367214946,1750703448162,-490.0,0.00022883,2]
[367214947,1750703448173,-490.0,0.00022883,2]
[367214949,1750703448183,-490.0,0.00022883,2]
[367214951,1750703448192,-3059.43,0.00022883,2]
[367214953,1750703448201,-1530.51,0.00022883,2]
[367214955,1750703448211,-490.0,0.00022883,2]
[367214957,1750703448221,-492.28096715,0.00022883,2]
[367214959,1750703448230,-1185.68,0.00022883,2]
[367214961,1750703448239,-596.82,0.00022883,2]
[367214975,1750703448356,-490.0,0.00022883,2]
[367214977,1750703448377,-5716.73,0.00022883,2]
[367214979,1750703448387,-710.5,0.00022883,2]
[367214981,1750703448401,-151.0,0.00022883,7]
[367214983,1750703448410,-490.0,0.00022883,2]
[367214985,1750703448421,-2097.94,0.00022883,2]
[367214987,1750703448431,-490.0,0.00022883,2]
[367214989,1750703448441,-490.0,0.00022883,2]
[367214992,1750703448451,-640.57,0.00022883,2]
[367214994,1750703448461,-1807.14,0.00022883,2]
[367214996,1750703448470,-151.0,0.00022883,7]
[367214998,1750703448481,-151.0,0.00022883,7]
[367215000,1750703448491,-151.0,0.00022883,7]
[367215002,1750703448501,-500.0,0.00022883,2]
[367215004,1750703448510,-490.0,0.00022883,2]
[367215006,1750703448520,-500.0,0.00022883,2]
[367215008,1750703448530,-500.0,0.00022883,2]
[367215010,1750703448539,-3098.84,0.00022883,2]
[367215012,1750703448548,-205.88659044,0.00022883,2]
[367215014,1750703448558,-500.0,0.00022883,2]
[367215016,1750703448568,-337.26265159,0.00022883,2]
[367215018,1750703448579,-834.59255148,0.00022883,3]
[367215020,1750703448589,-18102.671,0.00022883,3]
[367215022,1750703448599,-427787.58503953,0.00022884,2]
[367215024,1750703448609,-164.92974,0.00022884,2]
[367215026,1750703448623,-500.0,0.00022884,2]
[367215028,1750703448633,-500.0,0.00022884,2]
[367215030,1750703448650,-151.0,0.00022884,7]
[367215032,1750703448662,-151.0,0.00022884,7]
[367215035,1750703448673,-231.330488,0.00022884,7]
[367215037,1750703448684,-151.0,0.00022884,7]
[367215039,1750703448695,-764.78,0.00022884,2]
[367215041,1750703448705,-151.0,0.00022884,7]
[367215043,1750703448716,-500.0,0.00022884,2]
[367215045,1750703448727,-431.822114,0.00022884,7]
[367215047,1750703448737,-151.0,0.00022884,7]
[367215049,1750703448747,-151.0,0.00022884,7]
[367215051,1750703448758,-151.0,0.00022884,7]
[367215052,1750703448768,-151.0,0.00022884,7]
[367215055,1750703448779,-490.0,0.00022885,2]
[367215057,1750703448792,-151.0,0.00022885,7]
[367215059,1750703448802,-151.0,0.00022885,7]
[367215061,1750703448813,-48479.62405934,0.00022885,2]
[367215062,1750703448822,-369.72515344,0.00022886,2]
[367215064,1750703448832,-47901.66184085,0.00022896,2]
[367215066,1750703448841,-1416.1331638,0.00022898,2]
[367215068,1750703448851,-540.86553964,0.000229,8]
[367215071,1750703448862,-540.86553951,0.000229,8]
[367215073,1750703448872,-540.86553951,0.000229,8]
[367215075,1750703448882,-1416.1331638,0.00022926,2]
[367215076,1750703448895,-150.0,0.00022935,2]
[367215079,1750703448906,-250.0,0.0002295,2]
[367215080,1750703448916,-1416.1331638,0.00022955,2]
[367215082,1750703448926,-215.599872,0.00022956,7]
[367215085,1750703448937,-834.59255148,0.00022956,7]
[367215087,1750703448947,-583.09039139,0.00022959,2]
[367215089,1750703448957,-967.42,0.0002297,2]
[367215091,1750703448968,-500.0,0.00022972,2]
[367215093,1750703448978,-151.0,0.00022982,7]
[367215095,1750703448989,-151.0,0.00022982,7]
[367215097,1750703448998,-500.0,0.00022982,2]
[367215099,1750703449010,-500.0,0.00022982,2]
[367215101,1750703449020,-160.85,0.00022982,2]
[367215103,1750703449029,-151.0,0.00022982,7]
[367215105,1750703449038,-151.0,0.00022982,7]
[367215107,1750703449048,-764.78,0.00022982,2]
[367215109,1750703449057,-764.78,0.00022982,2]
[367215111,1750703449067,-151.0,0.00022982,7]
[367215113,1750703449076,-431.822114,0.00022982,7]
[367215115,1750703449087,-500.0,0.00022982,2]
[367215117,1750703449097,-682.42,0.00022983,2]
[367215119,1750703449107,-490.0,0.00022983,2]
[367215121,1750703449118,-490.0,0.00022983,2]
[367215123,1750703449128,-490.0,0.00022983,2]
[367215125,1750703449138,-490.0,0.00022983,2]
[367215127,1750703449152,-490.0,0.00022983,2]
[367215129,1750703449162,-151.0,0.00022983,7]
[367215131,1750703449172,-151.0,0.00022983,7]
[367215133,1750703449182,-151.0,0.00022983,7]
[367215135,1750703449191,-490.0,0.00022983,2]
[367215137,1750703449202,-490.0,0.00022983,2]
[367215140,1750703449212,-151.0,0.00022983,7]
[367215142,1750703449222,-490.74537372,0.00022983,2]
[367215144,1750703449231,-490.0,0.00022983,2]
[367215146,1750703449242,-741.25,0.00022983,2]
[367215148,1750703449251,-490.0,0.00022983,2]
[367215150,1750703449261,-490.0,0.00022983,2]
[367215152,1750703449270,-798.77,0.00022983,2]
[367215154,1750703449280,-550.51366414,0.00022983,2]
[367215156,1750703449290,-429.2346227,0.00022983,2]
[367215158,1750703449299,-490.0,0.00022983,2]
[367215160,1750703449309,-490.0,0.00022983,2]
[367215162,1750703449318,-806.26,0.00022983,2]
[367215164,1750703449329,-490.0,0.00022983,2]
[367215166,1750703449339,-490.0,0.00022983,2]
[367215168,1750703449349,-490.0,0.00022983,2]
[367215170,1750703449360,-490.0,0.00022983,2]
[367215172,1750703449370,-490.0,0.00022983,2]
[367215174,1750703449380,-490.0,0.00022983,2]
[367215176,1750703449390,-490.0,0.00022983,2]
[367215178,1750703449400,-490.0,0.00022983,2]
[367215180,1750703449410,-490.0,0.00022983,2]
[367215182,1750703449421,-677.46,0.00022983,2]
[367215184,1750703449431,-490.0,0.00022983,2]
[367215186,1750703449440,-490.0,0.00022983,2]
[367215188,1750703449450,-490.0,0.00022983,2]
[367215190,1750703449460,-490.0,0.00022983,2]
[367215192,1750703449469,-300.0,0.00022983,2]
[367215194,1750703449479,-490.0,0.00022983,2]
[367215196,1750703449488,-490.0,0.00022983,2]
[367215198,1750703449498,-490.0,0.00022983,2]
[367215200,1750703449509,-925.59,0.00022983,2]